[Event "23rd ETCC Women 2021"]
[Site "Catez"]
[Date "2021.11.21"]
[Round "9.17"]
[White "Injac, Teodora"]
[Black "Tsolakidou, Stavroula"]
[Result "1-0"]
[ECO "D02"]
[WhiteElo "2387"]
[BlackElo "2377"]
[Annotator "NA"]
[PlyCount "103"]
[EventDate "2021.11.08"]
[EventType "team-tourn"]
[EventCountry "SLO"]
[SourceTitle "playchess.com"]
[Source "ChessBase"]
[SourceQuality "1"]
[WhiteTeam "Serbia"]
[BlackTeam "Greece"]
[WhiteTeamCountry "SRB"]
[BlackTeamCountry "GRE"]
[TimeControl "40/5400+30:1800+30"]

1. Nf3 {[%emt 0:00:05]} d5 {[%emt 0:00:09]} 2. g3 {[%emt 0:00:13]} Nd7 {
[%emt 0:00:24]} 3. d4 {[%emt 0:00:17]} Nb6 {[%emt 0:00:20]} 4. Nc3 {[%emt 0:01:
36]} Bf5 {[%emt 0:02:13]} 5. Nh4 {[%emt 0:01:05]} e6 {[%emt 0:07:51]} 6. Nxf5 {
[%emt 0:00:35]} exf5 {[%emt 0:00:04]} 7. Qd3 {[%emt 0:00:32]} g6 {[%emt 0:00:
07]} 8. Bg2 {[%emt 0:01:18]} Nf6 {[%emt 0:00:22]} 9. Bg5 {[%emt 0:04:36]} Be7 {
[%emt 0:20:59]} 10. a4 {[%emt 0:01:50]} c6 {[%emt 0:03:28]} 11. Bxf6 {[%emt 0:
08:15]} Bxf6 {[%emt 0:00:05]} 12. b3 {[%emt 0:00:43]} a5 {[%emt 0:02:01]} 13.
e3 {[%emt 0:03:36]} O-O {[%emt 0:19:39]} 14. O-O {[%emt 0:04:46]} Qc7 {[%emt 0:
03:05]} 15. Rab1 {[%emt 0:05:06]} Rfd8 {[%emt 0:00:42]} 16. Ne2 {[%emt 0:01:47]
} Rab8 {[%emt 0:05:30]} 17. Rfc1 {[%emt 0:04:07]} Nd7 {[%emt 0:03:14]} 18. c4 {
[%emt 0:09:30]} dxc4 {[%emt 0:00:06]} 19. bxc4 {[%emt 0:00:19]} Nc5 {[%emt 0:
00:04]} 20. Qc2 {[%emt 0:04:00]} Na6 {[%emt 0:00:12]} 21. c5 {[%emt 0:01:12]}
Nb4 {[%emt 0:02:03]} 22. Qc4 {[%emt 0:00:20]} Bg5 {[%emt 0:09:28]} 23. Nc3 {
[%emt 0:07:44]} h5 {[%emt 0:07:09]} 24. Na2 {[%emt 0:08:21]} Nd5 {[%emt 0:00:
54]} 25. Bxd5 {[%emt 0:01:42]} Rxd5 {[%emt 0:00:22]} 26. Nc3 {[%emt 0:00:20]}
Rd7 {[%emt 0:00:18]} 27. Rb6 {[%emt 0:02:55]} Kg7 {[%emt 0:00:13]} 28. Rcb1 {
[%emt 0:00:48]} Qd8 {[%emt 0:01:30]} 29. Qb3 {[%emt 0:03:26]} Qc8 {[%emt 0:00:
06]} 30. d5 {[%emt 0:05:24]} Ra8 {[%emt 0:07:01]} 31. Rxb7 {[%emt 0:06:53]}
Rxb7 {[%emt 0:00:15]} 32. Qxb7 {[%emt 0:00:05]} Qxb7 {[%emt 0:01:01]} 33. Rxb7
{[%emt 0:00:02]} Bf6 {[%emt 0:00:05]} 34. Ne2 {[%emt 0:00:36]} cxd5 {[%emt 0:
00:04]} 35. Nd4 {[%emt 0:00:58]} Rc8 {[%emt 0:00:57]} 36. Rb5 {[%emt 0:00:35]}
Bd8 {[%emt 0:02:54]} 37. Kf1 {[%emt 0:06:54]} Kf8 {[%emt 0:01:06]} 38. Ke2 {
[%emt 0:01:50]} Ke8 {[%emt 0:02:15]} 39. Kd3 {[%emt 0:01:52]} Kd7 {[%emt 0:00:
29]} 40. Nb3 {[%emt 0:03:31]} Kc6 {[%emt 0:01:07]} 41. Nd4+ {[%emt 0:06:03]}
Kd7 {[%emt 0:01:22]} 42. Rb7+ {[%emt 0:02:49]} Ke8 {[%emt 0:13:06]} 43. Nb3 {
[%emt 0:03:38]} Bf6 {[%emt 0:03:28]} 44. Rb5 {[%emt 0:00:32]} Kd7 {[%emt 0:00:
18]} 45. Rxa5 {[%emt 0:01:16]} Rb8 {[%emt 0:00:19]} 46. Rb5 {[%emt 0:00:56]}
Ra8 {[%emt 0:00:19]} 47. Rb7+ {[%emt 0:00:19]} Ke8 {[%emt 0:03:52]} 48. a5 {
[%emt 0:06:17]} Bd8 {[%emt 0:07:20]} 49. c6 {[%emt 0:06:16]} Rc8 {[%emt 0:00:
26]} 50. a6 {[%emt 0:00:25]} Rxc6 {[%emt 0:00:10]} 51. a7 {[%emt 0:00:02]} Ra6
{[%emt 0:00:06]} 52. Nd4 {[%emt 0:00:24]} 1-0

[Event "23rd ETCC Women 2021"]
[Site "Catez"]
[Date "2021.11.21"]
[Round "9.18"]
[White "Avramidou, Anastasia"]
[Black "Velikic, Adela"]
[Result "1-0"]
[ECO "A11"]
[WhiteElo "2217"]
[BlackElo "2287"]
[Annotator "NA"]
[PlyCount "105"]
[EventDate "2021.11.08"]
[EventType "team-tourn"]
[EventCountry "SLO"]
[SourceTitle "playchess.com"]
[Source "ChessBase"]
[SourceQuality "1"]
[WhiteTeam "Greece"]
[BlackTeam "Serbia"]
[WhiteTeamCountry "GRE"]
[BlackTeamCountry "SRB"]
[TimeControl "40/5400+30:1800+30"]

1. Nf3 {[%emt 0:00:05]} d5 {[%emt 0:00:10]} 2. g3 {[%emt 0:00:08]} Nf6 {
[%emt 0:00:30]} 3. Bg2 {[%emt 0:00:09]} c6 {[%emt 0:05:38]} 4. O-O {[%emt 0:00:
12]} Bf5 {[%emt 0:00:46]} 5. c4 {[%emt 0:00:13]} e6 {[%emt 0:00:51]} 6. Qb3 {
[%emt 0:00:16]} Qb6 {[%emt 0:02:30]} 7. d3 {[%emt 0:00:11]} Nbd7 {[%emt 0:02:
52]} 8. Be3 {[%emt 0:02:25]} Bc5 {[%emt 0:06:34]} 9. Bxc5 {[%emt 0:00:16]} Nxc5
{[%emt 0:01:11]} 10. Qc3 {[%emt 0:00:30]} a5 {[%emt 0:13:39]} 11. b3 {[%emt 0:
04:22]} O-O {[%emt 0:05:59]} 12. Nbd2 {[%emt 0:03:09]} Ncd7 {[%emt 0:06:01]}
13. Rfe1 {[%emt 0:14:27]} Bg6 {[%emt 0:14:12]} 14. a3 {[%emt 0:09:48]} Rfd8 {
[%emt 0:03:30]} 15. h3 {[%emt 0:06:06]} Qc7 {[%emt 0:05:51]} 16. Nh4 {[%emt 0:
15:59]} Qd6 {[%emt 0:04:28]} 17. Nxg6 {[%emt 0:02:31]} hxg6 {[%emt 0:00:05]}
18. d4 {[%emt 0:00:28]} e5 {[%emt 0:08:25]} 19. e3 {[%emt 0:07:22]} e4 {
[%emt 0:07:42]} 20. c5 {[%emt 0:00:06]} Qc7 {[%emt 0:01:22]} 21. b4 {[%emt 0:
00:10]} axb4 {[%emt 0:02:11]} 22. axb4 {[%emt 0:00:40]} b6 {[%emt 0:01:43]} 23.
cxb6 {[%emt 0:12:33]} Qxb6 {[%emt 0:00:08]} 24. Nb3 {[%emt 0:00:11]} Rxa1 {
[%emt 0:02:29]} 25. Rxa1 {[%emt 0:00:05]} Rb8 {[%emt 0:00:41]} 26. Na5 {
[%emt 0:02:35]} Qxb4 {[%emt 0:01:41]} 27. Qxb4 {[%emt 0:00:09]} Rxb4 {[%emt 0:
00:03]} 28. Nxc6 {[%emt 0:00:10]} Rb7 {[%emt 0:01:26]} 29. Ra8+ {[%emt 0:01:12]
} Nf8 {[%emt 0:00:54]} 30. Bf1 {[%emt 0:04:36]} g5 {[%emt 0:01:02]} 31. Ba6 {
[%emt 0:03:11]} Rc7 {[%emt 0:00:15]} 32. Rc8 {[%emt 0:05:18]} Rxc8 {[%emt 0:00:
45]} 33. Bxc8 {[%emt 0:00:15]} Ng6 {[%emt 0:00:46]} 34. Bf5 {[%emt 0:01:10]}
Nf8 {[%emt 0:00:27]} 35. Kf1 {[%emt 0:04:46]} Kh8 {[%emt 0:00:28]} 36. Ke2 {
[%emt 0:00:39]} g6 {[%emt 0:00:36]} 37. Bc8 {[%emt 0:00:08]} N8d7 {[%emt 0:00:
33]} 38. Ne5 {[%emt 0:01:14]} Nxe5 {[%emt 0:00:32]} 39. dxe5 {[%emt 0:00:07]}
Ng8 {[%emt 0:00:19]} 40. Bb7 {[%emt 0:01:23]} Ne7 {[%emt 0:00:20]} 41. Kd2 {
[%emt 0:30:43]} Kg7 {[%emt 0:09:01]} 42. Kc3 {[%emt 0:00:00]} f5 {[%emt 0:06:
11]} 43. Kd4 {[%emt 0:00:00]} Kf7 {[%emt 0:02:56]} 44. Bxd5+ {[%emt 0:00:00]}
Ke8 {[%emt 0:00:26]} 45. Kc5 {[%emt 0:00:00]} Kd7 {[%emt 0:00:27]} 46. Bf7 {
[%emt 0:00:00]} Kc7 {[%emt 0:00:29]} 47. e6 {[%emt 0:00:00]} g4 {[%emt 0:08:01]
} 48. h4 {[%emt 0:00:00]} Kd8 {[%emt 0:01:16]} 49. Kd6 {[%emt 0:00:00]} f4 {
[%emt 0:00:21]} 50. Ke5 {[%emt 0:00:00]} fxg3 {[%emt 0:03:31]} 51. fxg3 {
[%emt 0:00:00]} Nf5 {[%emt 0:00:56]} 52. Kf6 {[%emt 0:00:00]} Ne7 {[%emt 0:00:
24]} 53. Bxg6 {[%emt 0:00:00]} 1-0

[Event "23rd ETCC Women 2021"]
[Site "Catez"]
[Date "2021.11.21"]
[Round "9.19"]
[White "Eric, Jovana"]
[Black "Pavlidou, Ekaterini"]
[Result "1/2-1/2"]
[ECO "B30"]
[WhiteElo "2253"]
[BlackElo "2172"]
[Annotator "NA"]
[PlyCount "133"]
[EventDate "2021.11.08"]
[EventType "team-tourn"]
[EventCountry "SLO"]
[SourceTitle "playchess.com"]
[Source "ChessBase"]
[SourceQuality "1"]
[WhiteTeam "Serbia"]
[BlackTeam "Greece"]
[WhiteTeamCountry "SRB"]
[BlackTeamCountry "GRE"]
[TimeControl "40/5400+30:1800+30"]

1. e4 {[%emt 0:00:04]} c5 {[%emt 0:00:30]} 2. Nf3 {[%emt 0:00:14]} Nc6 {
[%emt 0:00:13]} 3. Bb5 {[%emt 0:00:18]} Nf6 {[%emt 0:00:29]} 4. Bxc6 {[%emt 0:
01:33]} dxc6 {[%emt 0:00:11]} 5. d3 {[%emt 0:00:18]} Qc7 {[%emt 0:01:01]} 6.
O-O {[%emt 0:00:40]} e5 {[%emt 0:00:38]} 7. Nbd2 {[%emt 0:03:29]} Be6 {[%emt 0:
05:02]} 8. b3 {[%emt 0:01:35]} h6 {[%emt 0:08:45]} 9. Bb2 {[%emt 0:01:27]} Nd7
{[%emt 0:05:53]} 10. a4 {[%emt 0:04:33]} g5 {[%emt 0:03:01]} 11. Nc4 {[%emt 0:
04:47]} Bg7 {[%emt 0:00:39]} 12. Nfd2 {[%emt 0:01:24]} h5 {[%emt 0:02:52]} 13.
a5 {[%emt 0:04:47]} Bf6 {[%emt 0:02:22]} 14. Ne3 {[%emt 0:06:32]} O-O-O {
[%emt 0:13:37]} 15. Ndc4 {[%emt 0:05:43]} g4 {[%emt 0:24:11]} 16. Bc3 {[%emt 0:
05:04]} Bg5 {[%emt 0:03:43]} 17. b4 {[%emt 0:15:47]} Bf4 {[%emt 0:02:57]} 18.
Qe2 {[%emt 0:00:00]} cxb4 {[%emt 0:10:52]} 19. Bxb4 {[%emt 0:00:35]} c5 {
[%emt 0:00:57]} 20. Bc3 {[%emt 0:06:51]} Bxe3 {[%emt 0:03:34]} 21. Nxe3 {
[%emt 0:00:05]} Nb8 {[%emt 0:05:37]} 22. Rfb1 {[%emt 0:02:10]} Nc6 {[%emt 0:02:
05]} 23. Rb5 {[%emt 0:02:19]} Nd4 {[%emt 0:00:00]} 24. Bxd4 {[%emt 0:00:18]}
exd4 {[%emt 0:00:00]} 25. Nf1 {[%emt 0:02:28]} Bd7 {[%emt 0:00:59]} 26. Rb2 {
[%emt 0:01:10]} Rde8 {[%emt 0:02:39]} 27. Qd1 {[%emt 0:01:23]} f5 {[%emt 0:02:
24]} 28. exf5 {[%emt 0:00:27]} Bc6 {[%emt 0:07:46]} 29. Nd2 {[%emt 0:12:07]} h4
{[%emt 0:00:00]} 30. f6 {[%emt 0:02:01]} Qf4 {[%emt 0:00:00]} 31. Ne4 {[%emt 0:
05:22]} Rxe4 {[%emt 0:00:00]} 32. dxe4 {[%emt 0:00:00]} h3 {[%emt 0:00:00]} 33.
Ra3 {[%emt 0:03:33]} hxg2 {[%emt 0:00:00]} 34. Rg3 {[%emt 0:00:06]} Qh6 {
[%emt 0:00:00]} 35. Rxg2 {[%emt 0:04:16]} Bxe4 {[%emt 0:00:00]} 36. Qxg4+ {
[%emt 0:01:35]} Kd8 {[%emt 0:00:00]} 37. Qg5 {[%emt 0:01:42]} Bxg2 {[%emt 0:00:
00]} 38. Qxh6 {[%emt 0:00:04]} Rxh6 {[%emt 0:00:00]} 39. Kxg2 {[%emt 0:00:03]}
Kc7 {[%emt 0:00:00]} 40. f7 {[%emt 0:02:05]} Rg6+ {[%emt 0:00:00]} 41. Kf1 {
[%emt 0:31:27]} Rf6 {[%emt 0:26:43]} 42. h4 {[%emt 0:00:00]} Rxf7 {[%emt 0:00:
00]} 43. Rb3 {[%emt 0:00:00]} Kc6 {[%emt 0:00:00]} 44. h5 {[%emt 0:00:00]} Rh7
{[%emt 0:00:00]} 45. Rh3 {[%emt 0:00:00]} Kb5 {[%emt 0:00:00]} 46. Ke2 {
[%emt 0:00:00]} Kxa5 {[%emt 0:00:00]} 47. h6 {[%emt 0:00:00]} Kb5 {[%emt 0:00:
00]} 48. Kf3 {[%emt 0:00:00]} c4 {[%emt 0:01:17]} 49. Ke2 {[%emt 0:00:06]} Kc5
{[%emt 0:01:19]} 50. Kd2 {[%emt 0:00:30]} Kd5 {[%emt 0:00:46]} 51. Rh5+ {
[%emt 0:00:49]} Kd6 {[%emt 0:00:36]} 52. Rh4 {[%emt 0:00:56]} Ke5 {[%emt 0:00:
20]} 53. Rh5+ {[%emt 0:00:14]} Kf4 {[%emt 0:01:48]} 54. Rh4+ {[%emt 0:00:55]}
Kf3 {[%emt 0:00:58]} 55. Rxd4 {[%emt 0:00:39]} Rxh6 {[%emt 0:00:06]} 56. Rxc4 {
[%emt 0:00:03]} Rd6+ {[%emt 0:00:18]} 57. Kc1 {[%emt 0:00:22]} Kxf2 {[%emt 0:
00:10]} 58. Ra4 {[%emt 0:00:26]} a6 {[%emt 0:00:09]} 59. Rb4 {[%emt 0:00:20]}
Rd7 {[%emt 0:00:08]} 60. Kb2 {[%emt 0:00:15]} Ke3 {[%emt 0:00:15]} 61. Kb3 {
[%emt 0:00:33]} Kd2 {[%emt 0:01:40]} 62. Kb2 {[%emt 0:00:35]} b5 {[%emt 0:01:
22]} 63. c4 {[%emt 0:02:03]} Rd4 {[%emt 0:00:26]} 64. Kb3 {[%emt 0:00:03]}
bxc4+ {[%emt 0:00:35]} 65. Rxc4 {[%emt 0:00:04]} Rxc4 {[%emt 0:00:12]} 66. Kxc4
{[%emt 0:00:03]} a5 {[%emt 0:00:04]} 67. Kb5 {[%emt 0:00:04]} 1/2-1/2

[Event "23rd ETCC Women 2021"]
[Site "Catez"]
[Date "2021.11.21"]
[Round "9.20"]
[White "Markantonaki, Haritomeni"]
[Black "Gajcin, Marina"]
[Result "0-1"]
[ECO "B30"]
[WhiteElo "2174"]
[BlackElo "2198"]
[Annotator "ChessBase"]
[PlyCount "151"]
[EventDate "2021.11.08"]
[EventType "team-tourn"]
[EventCountry "SLO"]
[SourceTitle "playchess.com"]
[Source "ChessBase"]
[SourceQuality "1"]
[WhiteTeam "Greece"]
[BlackTeam "Serbia"]
[WhiteTeamCountry "GRE"]
[BlackTeamCountry "SRB"]
[TimeControl "40/5400+30:1800+30"]

1. e4 {[%emt 0:00:03]} c5 {[%emt 0:00:04]} 2. Nf3 {[%emt 0:00:06]} Nc6 {
[%emt 0:00:04]} 3. Bb5 {[%emt 0:00:15]} e6 {[%emt 0:00:06]} 4. O-O {[%emt 0:00:
43]} Nge7 {[%emt 0:00:03]} 5. Re1 {[%emt 0:01:44]} a6 {[%emt 0:00:10]} 6. Bf1 {
[%emt 0:02:28]} b6 {[%emt 0:00:10]} 7. c3 {[%emt 0:02:12]} d5 {[%emt 0:00:11]}
8. e5 {[%emt 0:05:41]} d4 {[%emt 0:11:17]} 9. d3 {[%emt 0:07:01]} Bb7 {[%emt 0:
07:06]} 10. Nbd2 {[%emt 0:06:30]} Ng6 {[%emt 0:09:12]} 11. g3 {[%emt 0:18:35]}
Qd5 {[%emt 0:17:22]} 12. c4 {[%emt 0:02:12]} Qd7 {[%emt 0:00:10]} 13. Bg2 {
[%emt 0:05:43]} O-O-O {[%emt 0:05:14]} 14. a3 {[%emt 0:06:07]} f6 {[%emt 0:08:
53]} 15. exf6 {[%emt 0:03:58]} gxf6 {[%emt 0:00:04]} 16. Ne4 {[%emt 0:03:07]}
Be7 {[%emt 0:04:24]} 17. Bh3 {[%emt 0:05:20]} f5 {[%emt 0:06:39]} 18. Neg5 {
[%emt 0:01:12]} Bxg5 {[%emt 0:00:22]} 19. Bxg5 {[%emt 0:00:55]} Rde8 {[%emt 0:
04:29]} 20. Rb1 {[%emt 0:04:11]} Qd6 {[%emt 0:01:47]} 21. Qe2 {[%emt 0:08:42]}
Rhf8 {[%emt 0:02:33]} 22. Bh6 {[%emt 0:01:21]} Rg8 {[%emt 0:01:57]} 23. Kf1 {
[%emt 0:02:42]} Nd8 {[%emt 0:02:25]} 24. b4 {[%emt 0:02:06]} f4 {[%emt 0:08:34]
} 25. bxc5 {[%emt 0:01:50]} Qxc5 {[%emt 0:01:44]} 26. Ne5 {[%emt 0:04:12]} f3 {
[%emt 0:01:27]} 27. Nxf3 {[%emt 0:01:13]} Qh5 {[%emt 0:00:17]} 28. Bg2 {
[%emt 0:00:42]} Qxh6 {[%emt 0:00:09]} 29. Rxb6 {[%emt 0:00:03]} Qg7 {[%emt 0:
00:49]} 30. Qd2 {[%emt 0:03:07]} Re7 {[%emt 0:04:44]} 31. Reb1 {[%emt 0:00:24]}
Rc7 {[%emt 0:01:30]} 32. Qa5 {[%emt 0:00:55]} Nf4 {[%emt 0:01:00]} 33. Ne1 {
[%emt 0:00:33]} Nxg2 {[%emt 0:00:20]} 34. Nxg2 {[%emt 0:00:02]} e5 {[%emt 0:01:
13]} 35. c5 {[%emt 0:01:16]} Qf7 {[%emt 0:00:44]} 36. Rxa6 {[%emt 0:00:46]}
Bxa6 {[%emt 0:00:40]} 37. Qxa6+ {[%emt 0:00:02]} Kd7 {[%emt 0:00:27]} 38. Qd6+
{[%emt 0:00:33]} Ke8 {[%emt 0:00:21]} 39. Re1 {[%emt 0:00:50]} Re7 {[%emt 0:00:
41]} 40. Rxe5 {[%emt 0:00:15]} Rg6 {[%emt 0:00:33]} 41. Rxe7+ {[%emt 0:03:07]}
Qxe7 {[%emt 0:00:06]} 42. Qxd4 {[%emt 0:00:08]} Ne6 {[%emt 0:11:23]} 43. Qa4+ {
[%emt 0:02:31]} Kf7 {[%emt 0:03:27]} 44. Nf4 {[%emt 0:02:29]} Nxf4 {[%emt 0:02:
27]} 45. Qxf4+ {[%emt 0:00:02]} Rf6 {[%emt 0:00:10]} 46. Qh4 {[%emt 0:04:08]}
h6 {[%emt 0:01:52]} 47. Qh5+ {[%emt 0:00:18]} Kf8 {[%emt 0:00:39]} 48. Qd5 {
[%emt 0:02:53]} Qe6 {[%emt 0:01:36]} 49. Qd4 {[%emt 0:01:06]} Qc6 {[%emt 0:00:
30]} 50. Qe4 {[%emt 0:15:29]} Qxc5 {[%emt 0:01:40]} 51. f4 {[%emt 0:00:03]}
Qxa3 {[%emt 0:00:34]} 52. Qh7 {[%emt 0:01:00]} Qb2 {[%emt 0:01:43]} 53. Qh8+ {
[%emt 0:01:58]} Ke7 {[%emt 0:00:13]} 54. Qh7+ {[%emt 0:00:09]} Kd6 {[%emt 0:00:
11]} 55. Qg8 {[%emt 0:00:45]} Kc7 {[%emt 0:05:06]} 56. Qh7+ {[%emt 0:01:06]}
Kb6 {[%emt 0:00:47]} 57. Qg8 {[%emt 0:00:16]} Kb7 {[%emt 0:01:40]} 58. Qh7+ {
[%emt 0:00:32]} Kb6 {[%emt 0:01:32]} 59. Qg8 {[%emt 0:00:04]} Qb1+ {[%emt 0:01:
43]} 60. Kg2 {[%emt 0:00:33]} Qxd3 {[%emt 0:01:10]} 61. Qb8+ {[%emt 0:00:17]}
Kc5 {[%emt 0:00:33]} 62. Qc7+ {[%emt 0:00:30]} Rc6 {[%emt 0:00:13]} 63. Qa5+ {
[%emt 0:00:53]} Kc4 {[%emt 0:01:50]} 64. Qa4+ {[%emt 0:01:17]} Kd5 {[%emt 0:00:
15]} 65. Qa5+ {[%emt 0:00:06]} Ke6 {[%emt 0:00:26]} 66. Qe5+ {[%emt 0:00:12]}
Kf7 {[%emt 0:00:12]} 67. Qh5+ {[%emt 0:00:15]} Qg6 {[%emt 0:00:32]} 68. Qd5+ {
[%emt 0:00:04]} Qe6 {[%emt 0:00:24]} 69. Qd3 {[%emt 0:00:21]} Rc5 {[%emt 0:01:
37]} 70. Qh7+ {[%emt 0:00:35]} Ke8 {[%emt 0:00:23]} 71. Qh8+ {[%emt 0:00:11]}
Kd7 {[%emt 0:00:15]} 72. Qh7+ {[%emt 0:01:04]} Kc6 {[%emt 0:00:06]} 73. h4 {
[%emt 0:00:42]} h5 {[%emt 0:00:39]} 74. Qd3 {[%emt 0:01:06]} Qd5+ {[%emt 0:00:
09]} 75. Qxd5+ {[%emt 0:00:04]} Kxd5 {[%emt 0:00:03]} 76. g4 {[%emt 0:00:20]}
0-1

[Event "23rd ETCC Women 2021"]
[Site "Catez"]
[Date "2021.11.21"]
[Round "9.21"]
[White "Paehtz, Elisabeth"]
[Black "Zaksaite, Salomeja"]
[Result "1-0"]
[ECO "C28"]
[WhiteElo "2485"]
[BlackElo "2250"]
[Annotator "RC"]
[PlyCount "143"]
[EventDate "2021.11.08"]
[EventType "team-tourn"]
[EventCountry "SLO"]
[SourceTitle "playchess.com"]
[Source "ChessBase"]
[SourceQuality "1"]
[WhiteTeam "Germany"]
[BlackTeam "Lithuania"]
[WhiteTeamCountry "GER"]
[BlackTeamCountry "LTU"]
[TimeControl "40/5400+30:1800+30"]

1. e4 {[%emt 0:00:02]} e5 {[%emt 0:01:41]} 2. Bc4 {[%emt 0:00:43]} Nf6 {
[%emt 0:00:12]} 3. d3 {[%emt 0:00:04]} Nc6 {[%emt 0:00:08]} 4. Nc3 {[%emt 0:00:
57]} d6 {[%emt 0:02:17]} 5. Nge2 {[%emt 0:04:41]} Bg4 {[%emt 0:08:44]} 6. h3 {
[%emt 0:06:31]} Be6 {[%emt 0:00:04]} 7. Nd5 {[%emt 0:17:34]} Be7 {[%emt 0:11:
10]} 8. c3 {[%emt 0:02:03]} a6 {[%emt 0:02:50]} 9. a4 {[%emt 0:01:33]} Qd7 {
[%emt 0:00:42]} 10. Ng3 {[%emt 0:04:02]} Nd8 {[%emt 0:29:24]} 11. Qf3 {[%emt 0:
07:42]} Rb8 {[%emt 0:00:34]} 12. a5 {[%emt 0:11:29]} h6 {[%emt 0:08:55]} 13.
Be3 {[%emt 0:01:16]} c6 {[%emt 0:09:14]} 14. Nb6 {[%emt 0:00:52]} Qc7 {[%emt 0:
00:04]} 15. Nf5 {[%emt 0:02:57]} Bxf5 {[%emt 0:01:17]} 16. Qxf5 {[%emt 0:00:07]
} O-O {[%emt 0:03:32]} 17. g4 {[%emt 0:04:36]} Kh8 {[%emt 0:02:21]} 18. Qf3 {
[%emt 0:01:57]} Ne6 {[%emt 0:00:28]} 19. h4 {[%emt 0:01:34]} d5 {[%emt 0:03:15]
} 20. exd5 {[%emt 0:01:06]} cxd5 {[%emt 0:00:20]} 21. Nxd5 {[%emt 0:01:37]}
Nxd5 {[%emt 0:00:08]} 22. Bxd5 {[%emt 0:00:25]} Nf4 {[%emt 0:03:18]} 23. Be4 {
[%emt 0:03:29]} g6 {[%emt 0:01:11]} 24. Bxf4 {[%emt 0:02:29]} exf4 {[%emt 0:00:
42]} 25. Kf1 {[%emt 0:04:38]} b6 {[%emt 0:00:20]} 26. h5 {[%emt 0:03:13]} Kg7 {
[%emt 0:00:21]} 27. hxg6 {[%emt 0:00:40]} fxg6 {[%emt 0:00:33]} 28. axb6 {
[%emt 0:00:48]} Rxb6 {[%emt 0:00:04]} 29. Kg2 {[%emt 0:00:56]} Bg5 {[%emt 0:04:
38]} 30. d4 {[%emt 0:00:38]} Rxb2 {[%emt 0:02:05]} 31. Rxa6 {[%emt 0:00:04]}
Rb6 {[%emt 0:00:04]} 32. Rxb6 {[%emt 0:00:16]} Qxb6 {[%emt 0:00:03]} 33. Rb1 {
[%emt 0:00:06]} Qd6 {[%emt 0:01:03]} 34. Rb7+ {[%emt 0:01:26]} Kh8 {[%emt 0:01:
46]} 35. Qd3 {[%emt 0:03:10]} Bf6 {[%emt 0:01:58]} 36. Bf3 {[%emt 0:00:56]} Bg7
{[%emt 0:00:16]} 37. Qb5 {[%emt 0:00:35]} Rc8 {[%emt 0:01:13]} 38. Rd7 {
[%emt 0:00:52]} Qf6 {[%emt 0:00:40]} 39. c4 {[%emt 0:04:22]} Rd8 {[%emt 0:01:
47]} 40. d5 {[%emt 0:01:11]} Rxd7 {[%emt 0:00:24]} 41. Qxd7 {[%emt 0:30:04]}
Bf8 {[%emt 0:02:27]} 42. Be4 {[%emt 0:00:00]} Qe7 {[%emt 0:01:47]} 43. Qxe7 {
[%emt 0:00:00]} Bxe7 {[%emt 0:00:04]} 44. Kf3 {[%emt 0:00:00]} Kg7 {[%emt 0:17:
26]} 45. Bd3 {[%emt 0:00:00]} Kf6 {[%emt 0:00:36]} 46. Kxf4 {[%emt 0:00:00]}
Bc5 {[%emt 0:01:05]} 47. f3 {[%emt 0:00:00]} g5+ {[%emt 0:00:08]} 48. Ke4 {
[%emt 0:00:00]} Bf2 {[%emt 0:00:22]} 49. Bc2 {[%emt 0:00:00]} Bg1 {[%emt 0:05:
02]} 50. Bb3 {[%emt 0:00:00]} Bc5 {[%emt 0:02:35]} 51. Ba4 {[%emt 0:00:00]} Bf2
{[%emt 0:01:51]} 52. d6 {[%emt 0:00:00]} Ke6 {[%emt 0:00:05]} 53. d7 {[%emt 0:
00:00]} Ke7 {[%emt 0:00:08]} 54. Kf5 {[%emt 0:00:00]} Be3 {[%emt 0:00:50]} 55.
Kg6 {[%emt 0:00:00]} Bc1 {[%emt 0:00:35]} 56. Kxh6 {[%emt 0:00:00]} Bf4 {
[%emt 0:00:27]} 57. Kg6 {[%emt 0:00:00]} Bd2 {[%emt 0:00:35]} 58. c5 {[%emt 0:
00:00]} Kd8 {[%emt 0:00:13]} 59. Kf6 {[%emt 0:00:00]} Be3 {[%emt 0:03:03]} 60.
c6 {[%emt 0:00:00]} Bf4 {[%emt 0:00:12]} 61. c7+ {[%emt 0:00:00]} Bxc7 {
[%emt 0:00:15]} 62. Kxg5 {[%emt 0:00:00]} Ke7 {[%emt 0:00:07]} 63. f4 {[%emt 0:
00:00]} Kf7 {[%emt 0:00:11]} 64. Kf5 {[%emt 0:00:00]} Bd8 {[%emt 0:00:37]} 65.
g5 {[%emt 0:00:00]} Kg7 {[%emt 0:00:12]} 66. Kg4 {[%emt 0:00:00]} Kf7 {[%emt 0:
00:21]} 67. f5 {[%emt 0:00:00]} Kg7 {[%emt 0:00:04]} 68. f6+ {[%emt 0:00:00]}
Kg6 {[%emt 0:00:04]} 69. Bc2+ {[%emt 0:00:00]} Kf7 {[%emt 0:00:04]} 70. Kf5 {
[%emt 0:00:07]} Kf8 {[%emt 0:01:04]} 71. g6 {[%emt 0:00:08]} Kg8 {[%emt 0:00:
03]} 72. Bb3+ {[%emt 0:00:06]} 1-0

[Event "23rd ETCC Women 2021"]
[Site "Catez"]
[Date "2021.11.21"]
[Round "9.22"]
[White "Baginskaite, Kamile"]
[Black "Heinemann, Josefine"]
[Result "0-1"]
[ECO "A32"]
[WhiteElo "2100"]
[BlackElo "2336"]
[Annotator "NA"]
[PlyCount "54"]
[EventDate "2021.11.08"]
[EventType "team-tourn"]
[EventCountry "SLO"]
[SourceTitle "playchess.com"]
[Source "ChessBase"]
[SourceQuality "1"]
[WhiteTeam "Lithuania"]
[BlackTeam "Germany"]
[WhiteTeamCountry "LTU"]
[BlackTeamCountry "GER"]
[TimeControl "40/5400+30:1800+30"]

1. d4 {[%emt 0:00:26]} Nf6 {[%emt 0:00:08]} 2. Nf3 {[%emt 0:01:14]} d5 {
[%emt 0:00:10]} 3. c4 {[%emt 0:02:15]} e6 {[%emt 0:00:08]} 4. Nc3 {[%emt 0:15:
11]} c5 {[%emt 0:00:36]} 5. cxd5 {[%emt 0:01:07]} cxd4 {[%emt 0:00:08]} 6. Nxd4
{[%emt 0:16:40]} Nxd5 {[%emt 0:01:35]} 7. Ndb5 {[%emt 0:05:46]} a6 {[%emt 0:03:
00]} 8. e4 {[%emt 0:14:22]} Nb4 {[%emt 0:06:26]} 9. Qxd8+ {[%emt 0:04:43]} Kxd8
{[%emt 0:00:32]} 10. Na3 {[%emt 0:00:58]} Bc5 {[%emt 0:06:09]} 11. Bg5+ {
[%emt 0:01:57]} f6 {[%emt 0:01:04]} 12. O-O-O+ {[%emt 0:00:59]} Ke7 {[%emt 0:
01:09]} 13. Bh4 {[%emt 0:01:08]} N8c6 {[%emt 0:03:55]} 14. Nc4 {[%emt 0:03:14]}
b5 {[%emt 0:05:21]} 15. a3 {[%emt 0:05:47]} bxc4 {[%emt 0:00:23]} 16. axb4 {
[%emt 0:00:04]} Bxb4 {[%emt 0:01:55]} 17. Bxc4 {[%emt 0:00:05]} Ne5 {[%emt 0:
05:01]} 18. Ba2 {[%emt 0:05:28]} Bb7 {[%emt 0:02:53]} 19. f3 {[%emt 0:00:07]}
Rac8 {[%emt 0:04:04]} 20. Be1 {[%emt 0:01:08]} a5 {[%emt 0:01:59]} 21. Kc2 {
[%emt 0:03:42]} Ba6 {[%emt 0:04:25]} 22. h3 {[%emt 0:01:13]} Rc7 {[%emt 0:04:
00]} 23. Kb1 {[%emt 0:01:01]} Rb8 {[%emt 0:02:24]} 24. Kc2 {[%emt 0:03:43]} a4
{[%emt 0:02:55]} 25. Rc1 {[%emt 0:04:20]} Bd3+ {[%emt 0:05:43]} 26. Kd1 {
[%emt 0:00:44]} Rd7 {[%emt 0:00:58]} 27. Bd2 {[%emt 0:04:40]} Bxc3 {[%emt 0:01:
07]} 0-1